{"text_format":"1","workbook":"xlsx","n_sheets":5,"sheets":["DATI","iscriz.giov","liber. giov","aut.ne giov.","Regol."],"not_rendered":{"charts":0,"images":2,"macros":1,"external_links":0,"defined_names":92,"comments":0,"pivot_tables":0},"unopened":[],"bounds":{"document_bytes":16777216,"sheet_cells":100000,"rows_first":2000,"rows_last":500,"rows_between":2000,"halvings":0,"cell_chars":16384,"cell_head_chars":4096},"cells_cut":0,"cells_raw":0,"read":"whole","date_system":"1900"}

{"sheet":"DATI","index":0,"n_rows":17,"n_cols":20,"rows_kept":17,"cut":false,"hidden":false,"merged":[[52,0,53,15],[55,12,55,15],[40,0,40,7],[29,0,29,4],[45,0,46,15],[29,10,29,15],[47,0,47,7],[47,8,47,14],[49,13,49,15],[49,0,49,7],[32,10,32,15],[32,1,32,7],[26,0,26,7],[26,10,26,15],[10,4,10,12],[10,14,10,15],[13,0,13,15],[14,0,14,15],[18,1,18,15],[20,0,20,15],[22,0,22,8],[22,12,22,15],[24,0,24,13],[0,19,0,21],[1,0,1,15],[8,4,8,15],[5,4,5,15],[3,4,3,15]]}
[null,null,null,null,null,null,null,null,null,null,null,null,null,null,null,null,null,null,null,"INSERIRE I DATI DELL'ATLETA"]
[null,null,null,null,null,null,null,null,null,null,null,null,null,null,null,null,null,null,null,"Cognome"]
[null,null,null,null,null,null,null,null,null,null,null,null,null,null,null,null,null,null,null,"Nome"]
[null,null,null,null,null,null,null,null,null,null,null,null,null,null,null,null,null,null,null,"Nato/a a"]
[null,null,null,null,null,null,null,null,null,null,null,null,null,null,null,null,null,null,null,"il"]
[null,null,null,null,null,null,null,null,null,null,null,null,null,null,null,null,null,null,null,"residente a"]
[null,null,null,null,null,null,null,null,null,null,null,null,null,null,null,null,null,null,null,"CAP"]
[null,null,null,null,null,null,null,null,null,null,null,null,null,null,null,null,null,null,null,"Via"]
[null,null,null,null,null,null,null,null,null,null,null,null,null,null,null,null,null,null,null,"Genitore o che ne fa le veci"]
[null,null,null,null,null,null,null,null,null,null,null,null,null,null,null,null,null,null,null,"Tessera Nr."]
[null,null,null,null,null,null,null,null,null,null,null,null,null,null,null,null,null,null,null,"Codice Fiscale"]
[null,null,null,null,null,null,null,null,null,null,null,null,null,null,null,null,null,null,null,"Cellulare"]
[null,null,null,null,null,null,null,null,null,null,null,null,null,null,null,null,null,null,null,"E-mail"]
[]
[]
[]
[null,null,null,null,null,null,null,null,"X"]

{"sheet":"iscriz.giov","index":1,"n_rows":85,"n_cols":43,"rows_kept":85,"cut":false,"hidden":false,"merged":[[1,0,1,31],[13,4,13,13],[13,18,13,33],[31,2,31,33],[30,2,30,20],[47,0,47,33],[33,1,33,33],[15,4,15,13],[15,16,15,19],[15,26,15,33],[24,0,25,33],[20,19,20,29],[27,2,29,33],[40,4,40,14],[14,37,14,43],[17,4,17,13],[17,18,17,33],[19,21,19,33],[19,4,19,13],[54,2,56,33],[49,28,49,33],[50,17,50,33],[50,0,50,15],[84,4,84,13],[81,16,82,33],[59,16,60,33],[65,2,67,33],[70,16,71,33],[76,2,78,33]]}
[]
["DOMANDA DI ISCRIZIONE STAGIONE 2024\nGIOVANISSIMI"]
[]
[]
[null,null,null,null,null,null,null,null,null,null,null,null,null,null,null,null,null,null,null,null,"Spett.le"]
[null,null,null,null,null,null,null,null,null,null,null,null,null,null,null,null,null,null,null,null,"Consiglio Direttivo",null,null,null,null,null,null,null,null,null,null,null,null,null,null,null,null,null,null,null,null,null,"Cliccando \"Salva\""]
[null,null,null,null,null,null,null,null,null,null,null,null,null,null,null,null,null,null,null,null,"A.S.D. TEAM BYKERS VIGGIANO",null,null,null,null,null,null,null,null,null,null,null,null,null,null,null,null,null,"Verrà salvata una copia in pdf sul tuo Desktop"]
[null,null,null,null,null,null,null,null,null,null,null,null,null,null,null,null,null,null,null,null,"VIA MARGHERITA DI SAVOIA, SNC - "]
[null,null,null,null,null,null,null,null,null,null,null,null,null,null,null,null,null,null,null,null,"85059 VIGGIANO (PZ)"]
[]
[]
["DATI DEL MINORE"]
[]
["Cognome",null,null,null,{"$f":"DATI!V2","v":0},null,null,null,null,null,null,null,null,null,null,"Nome",null,null,{"$f":"DATI!V3","v":0}]
[]
["Nato/a a",null,null,null,{"$f":"DATI!V4","v":0},null,null,null,null,null,null,null,null,null,null,"il",{"$f":"DATI!V5","v":"00:00:00"},null,null,null,null,"Residente a",null,null,null,null,{"$f":"DATI!V6","v":"00:00:00"}]
[]
["Via/Piazza",null,null,null,{"$f":"DATI!V8","v":0},null,null,null,null,null,null,null,null,null,null,"Cell.:",null,null,{"$f":"DATI!V12","v":0}]
[]
["Tessera N°",null,null,null,{"$f":"DATI!V10","v":0},null,null,null,null,null,null,null,null,null,null,"Codice Fiscale",null,null,null,null,null,{"$f":"DATI!V11","v":0}]
[]
[]
[]
["Il/la Sottoscritto/a",null,null,null,null,null,null,{"$f":"DATI!padre.madre","v":0},null,null,null,null,null,null,null,null,null,null,null,null,null,null,null,null,null,"in qualità di padre/madre"]
["CHIEDE al Direttivo dell'associazione A.S.D. Team Bykers Viggiano che il/la FIGLIO/FIGLIA venga ammesso/a nella qualità di ciclista non professionista, e, all'uopo DICHIARA"]
[]
[]
[null,"•","Di conoscere lo Statuto ed il regolamento della stessa Associazione e della F.C.I. e di accettarli integralmente.\nDi accettare, in base a quanto previsto dal Codice Civile sull’esercizio della patri podestà, il tesseramento alla Associazione sportiva A.S."]
[]
[null,"•"]
[null,null,{"$f":"DATI!V2&\" \"&DATI!V3","v":" "}]
[null,"•","Di conoscere e concorrere a far rispettare il regolamento predisposto da competenti organi del Coni e della F.C.I. in materia di antidoping.\n\n"]
[]
[null,"Quota Associativa annuale € 50,00 da versare al momento dell'iscrizione"]
[]
[]
["Telefono",null,null,null,null,null,null,null,null,null,null,null,null,null,null,null,null,"Cellulare"]
[]
["E-mail",null,null,null,{"$f":"mail","v":0}]
[]
["Data",null,null,null,null,null,null,null,null,null,null,null,null,null,null,null,null,"Firma"]
[]
[]
[]
[]
[]
[]
["CONSENSO AL TRATTAMENTO DEI DATI PERSONALI"]
[]
["Il/la sottoscritto/a ",null,null,null,null,null,{"$f":"DATI!padre.madre","v":0},null,null,null,null,null,null,null,null,null,null,null,null,null,null,null,null,null,null,null,null,null,"padre/madre di"]
[{"$f":"C31","v":" "},null,null,null,null,null,null,null,null,null,null,null,null,null,null,null,null,"avendo ricevuto idoneità informativa ai sensi dell'art."]
["13 del D.Lgs. 196/2003"]
[]
["ACCONSENTE"]
[null,"1.","Al trattamento dei propri dati personali e del/la proprio/a figlio/a, ivi inclusi quelli di natura sensibile, per lo svolgimento delle operazioni connesse alle procedure di affiliazione F.C.I., e di gestione del rapporto assicurativo."]
[]
[]
[]
[]
[null,null,null,null,null,null,null,null,null,null,null,null,null,null,null,null,"Firma dell'interessato (o del soggetto che esercita la potestà legali ai sensi delle disposizioni di legge): "]
[]
[]
[]
[]
[]
[null,"2.","Al trattamento dei propri dati personali e del/la proprio/a figlio/a per l'invio di comunicazioni di natura promozionale inerenti ai servizi ed alle iniziative proposte a qualsiasi livello F.C.I.e dagli Enti e soggetti privati collegati alle manifestazion"]
[]
[]
[]
[]
[null,null,null,null,null,null,null,null,null,null,null,null,null,null,null,null,"Firma dell'interessato (o del soggetto che esercita la potestà legali ai sensi delle disposizioni di legge): "]
[]
[]
[]
[]
[]
[null,"3.","Anche ai sensi degli artt. 96 e 97 della L. 633/1941, all'utilizzo del materiale audio e video interviste, filmati, fotografie diapositive) realizzato nel corso di eventi e/o manifestazioni sportive allo scopo di promuovere sia le attività del Team Bykers"]
[]
[]
[]
[]
[null,null,null,null,null,null,null,null,null,null,null,null,null,null,null,null,"Firma dell'interessato (o del soggetto che esercita la potestà legali ai sensi delle disposizioni di legge): "]
[]
[]
["Viggiano lì"]

{"sheet":"liber. giov","index":2,"n_rows":43,"n_cols":30,"rows_kept":43,"cut":false,"hidden":false,"merged":[[17,37,17,43],[1,17,7,33],[9,0,9,33],[14,28,14,33],[16,29,16,33],[16,18,16,26],[27,0,37,33],[42,18,42,29],[44,15,44,32],[16,4,16,13],[18,0,18,33],[21,0,21,33],[22,0,22,33],[25,0,25,33],[39,5,39,12]]}
[]
[null,null,null,null,null,null,null,null,null,null,null,null,null,null,null,null,null,"A.S.D. TEAM BYKERS VIGGIANO\nVia Margherita di Savoia snc\n85059 VIGGIANO (PZ)\nC.F.96063460768 \nP.I. 01789510763 \nE-mail: bikersviggiano@libero.it   \nwww.asdteambykersviggiano.it"]
[]
[]
[]
[]
[]
[]
[]
["AUTORIZZAZIONE ALLENAMENTI ANNO 2024"]
[]
[]
["DATI DEL MINORE"]
[]
["Il/la sottoscritto/a",null,null,null,null,null,null,{"$f":"DATI!padre.madre","v":0},null,null,null,null,null,null,null,null,null,null,null,null,null,null,null,null,null,null,null,null,"padre/madre"]
[]
["del minore",null,null,null,{"$f":"DATI!V2&\" \"&DATI!V3","v":" "},null,null,null,null,null,null,null,null,null,null,"nato a",null,null,{"$f":"DATI!V4","v":0},null,null,null,null,null,null,null,null,null,"il",{"$f":"DATI!V5","v":"00:00:00"}]
[]
[]
[]
[]
["Autorizza lo stesso ad effettuare"]
["gli allenamenti su strada in bici con o senza la supervisione di un adulto di riferimento."]
[]
[]
["DICHIARAZIONE LIBERATORIA"]
[]
["alla partecipazione del mio tutelato all'attività in questione.\nCon la sottoscrizione della presente dichiaro di voler liberare ed esonerare gli organizzatori da ogni e qualsiasi responsabilità civile e penale possa derivare al partecipante. Dichiaro di essere a conoscenza dei rischi connessi agli infortuni o di danni a persone o cose verificatesi a proprio discapito o causati a terzi, impegnandomi a non esperire alcuna azione giudiziale o extragiudiziale e non elevare alcun tipo di denuncia nei confronti di chicchessia, e comunque a non sollevare alcuna eccezione riguardo alla organizzazione della suddetta attività e dei suoi rappresentanti."]
[]
[]
[]
[]
[]
[]
[]
[]
[]
[]
[]
["Viggiano lì, "]
[]
[]
[null,null,null,null,null,null,null,null,null,null,null,null,null,null,null,null,null,null,"Firma del genitore"]

{"sheet":"aut.ne giov.","index":3,"n_rows":55,"n_cols":28,"rows_kept":55,"cut":false,"hidden":false,"merged":[[1,17,7,33],[20,27,20,33],[22,6,22,33],[25,0,25,33],[11,4,11,13],[11,18,11,33],[43,0,49,33],[54,18,54,29],[56,15,56,32],[17,4,17,14],[18,19,18,29],[27,0,30,33],[33,0,34,33],[36,0,37,33],[41,0,41,33],[53,5,53,12],[12,37,12,43],[15,4,15,13],[15,18,15,33],[17,21,17,33],[13,4,13,13],[13,16,13,19],[13,26,13,33]]}
[]
[null,null,null,null,null,null,null,null,null,null,null,null,null,null,null,null,null,"A.S.D. TEAM BYKERS VIGGIANO\nVia Margherita di Savoia snc\n85059 VIGGIANO (PZ)\nC.F.96063460768 \nP.I. 01789510763 \nE-mail: bikersviggiano@libero.it   \nwww.asdteambykersviggiano.it"]
[]
[]
[]
[]
[]
[]
[]
["Partecipante minorenne"]
[]
["Cognome",null,null,null,{"$f":"DATI!V2","v":0},null,null,null,null,null,null,null,null,null,null,"Nome",null,null,{"$f":"DATI!V3","v":0}]
[]
["Nato/a a",null,null,null,{"$f":"DATI!V4","v":0},null,null,null,null,null,null,null,null,null,null,"il",{"$f":"DATI!V5","v":"00:00:00"},null,null,null,null,"Residente a",null,null,null,null,{"$f":"DATI!V6","v":"00:00:00"}]
[]
["Via/Piazza",null,null,null,{"$f":"DATI!V8","v":0},null,null,null,null,null,null,null,null,null,null,"Cell.:",null,null,{"$f":"DATI!V12","v":0}]
[]
["Tessera N°",null,null,null,{"$f":"DATI!V10","v":0},null,null,null,null,null,null,null,null,null,null,"Codice Fiscale",null,null,null,null,null,{"$f":"DATI!V11","v":0}]
[]
[]
["Il/la Sottoscritto/a",null,null,null,null,null,null,{"$f":"DATI!padre.madre","v":0},null,null,null,null,null,null,null,null,null,null,null,null,null,null,null,null,null,null,null,"in qualità di "]
[]
["padre/madre di ",null,null,null,null,null,{"$f":"DATI!V2&\" \"&DATI!V3","v":" "}]
[]
[]
["AUTORIZZO"]
[]
["Mio/a figlio/a al viaggio per partecipare alle gare inserite nel calendario della stagione agonistica 2024."]
[]
[]
[]
[]
["Firma del genitore"]
[]
[]
["Liberatoria Privacy:"]
["Si autorizza il trattamento dei dati personali nel rispetto di quanto disposto dal D. lgs. 196/2003 in materia di tutela dei dati personali"]
[]
[]
["Firma del genitore"]
[]
["DICHIARAZIONE LIBERATORIA"]
[]
["per la partecipazione del mio tutelato all'attività in questione.\nCon la sottoscrizione della presente dichiaro di voler liberare ed esonerare gli organizzatori da ogni e qualsiasi responsabilità civile e penale possa derivare al partecipante. Dichiaro di essere a conoscenza dei rischi connessi agli infortuni o di danni a persone o cose verificatesi a proprio discapito o causati a terzi, impegnandomi a non esperire alcuna azione giudiziale o extragiudiziale e a non elevare alcun tipo di denuncia nei confronti di chicchessia, e comunque a non sollevare alcuna eccezione riguardo alla organizzazione della suddetta attività e dei suoi rappresentanti."]
[]
[]
[]
[]
[]
[]
[]
[]
[]
["Viggiano lì, "]
[null,null,null,null,null,null,null,null,null,null,null,null,null,null,null,null,null,null,"Firma del genitore"]

{"sheet":"Regol.","index":4,"n_rows":32,"n_cols":3,"rows_kept":32,"cut":false,"hidden":false,"merged":[[23,0,23,2],[24,0,24,2],[25,0,25,2],[26,0,26,2],[14,0,14,2],[16,0,16,2],[18,0,18,2],[19,0,19,2],[20,0,20,2],[21,0,21,2],[22,0,22,2],[15,0,15,2],[9,0,9,2],[10,0,10,2],[11,0,11,2],[12,0,12,2],[13,0,13,2]]}
[]
["A.S.D. Team Bykers Viggiano"]
["Via Margherita di Savoia snc"]
["85059 Viggiano (PZ)"]
["C.F.96063460768 "]
["P.I. 01789510763                              "]
["E-mail, bikersviggiano@libero.it"]
["www.asdteambykersviggiano.it"]
[]
["REGOLAMENTO STAGIONE 2024 – GIOVANISSIMI"]
["La ASD Team Bykers Viggiano è un’associazione sportiva, con sede a Viggiano (PZ), affiliata alla Federazione Ciclistica Italiana con numero affiliazione 15Y0427.\nLa Team Bykers Viggiano avvierà dal 1aprile 2024 progetto a lungo termine finalizzato al corretto uso della bicicletta nello sport e consistente nella realizzazione di CORSI DI AVVIAMENTO AL CICLISMO.\nAlla realizzazione dell’obiettivo partecipano i dirigenti e i direttori sportivi e tecnici dell’associazione. "]
["Art. 1"]
["Le iscrizioni sono aperte tutto l’anno e sono riservate a ragazze e ragazzi di età non inferiore ai 6 anni e non superiore ai 12 anni, "]
["L’iscrizione è valida solo presentando compilata in tutte le sue parti la “domanda d’iscrizione”."]
["È obbligatoria la consegna del certificato medico sportivo, in originale, rinnovato al momento della richiesta d’iscrizione all’Associazione, pena il non accoglimento della stessa; in ogni caso il certificato va rinnovato contestualmente alla sua scadenza. Nel caso il certificato medico risultasse scaduto l’associazione dovrà sospendere l’atleta da qualsiasi attività di allenamento"]
["Art. 2\nPer coloro che frequentano le lezioni è obbligatoria l’iscrizione alla ASD Team Bykers Viggiano come socio atleta. Tale iscrizione comporta automaticamente il tesseramento alla FCI.\nE’ prevista, a richiesta, un  periodo di prova di due lezioni. \nAi corsi non potranno pertanto partecipare coloro che non avranno presentato il certificato medico predetto e che non sono tesserati all’ASD Team Bykers Viggiano."]
["Art. 3\nPer tutti i soci l’iscrizione alla Federazione Ciclistica Italiana comprende anche la copertura assicurativa con polizza standard della FCI che è valida per tutto il periodo di svolgimento delle attività in calendario e nelle strutture predisposte sia per le attività di allenamento che per quelle promozionali-agonistiche."]
[]
["Art. 4\nI genitori e/o gli accompagnatori degli allievi sono responsabili dei medesimi fino al luogo di ritrovo destinato all’allenamento o alle lezioni e per spostamenti in auto ed altri mezzi in luoghi distanti dal comune di Viggiano, come gare e manifestazioni sportive.\nSarà cura dei genitori o di chi ne fa le veci accompagnare i giovani atleti presso la sede di allenamento e alle gare previste nella stagione in corso."]
["Art. 5\nLe lezioni sono costituite da due sedute di allenamento a settimana nei giorni da stabilire all’inizio della stagione, dal mese di aprile al mese di settembre, dalle ore 17.00 alle ore 18.00\nTutti gli iscritti all’associazione, in base al grado di preparazione raggiunto, potranno partecipare a manifestazioni ciclistiche nel corso della stagione. \nLA CONVOCAZIONE DEGLI ATLETI A GARE O MANIFESTAZIONI E’ COMUNQUE DI ESCLUSIVA COMPETENZA DEI DIRETTORI SPORTIVI.\nGenitori e accompagnatori sono invitati a partecipare a tutte le attività, manifestazioni ed eventi che avranno luogo nel corso della stagione collaborando nella gestione della logistica.\nL’allievo/a dovrà rispettare i compagni, le direttive dell’istruttore, l’orario delle lezioni e non intraprendere iniziative proprie."]
["\n\nPer qualsiasi tipo di comunicazione (organizzazione, avviso di assenza prolungata, ecc.) suggerimenti, critiche, difficoltà di qualsiasi genere, rivolgersi al Direttore Sportivo o a un dirigente, per ottenere i chiarimenti richiesti e condividere le giuste soluzioni ad eventuali problemi.\n"]
["E’ obbligatorio l’uso del CASCO. Qualora l’allievo/a non fosse provvisto, non potrà prendere parte alla lezione. Non è consentito l’uso di sandali o calzature aperte. E’vietato l’uso di manubri con appendici e/o prolunghe (le cosiddette corna)."]
["Art. 6\nLa quota associativa ammonta a:\n- € 50,00 per l’iscrizione alla Federazione Ciclistica Italiana e all’associazione Team Bykers Viggiano, \nEssa dovrà essere versata al momento dell’iscrizione presso la sede dell’associazione.\nNon è prevista nessuna quota mensile per l’attività ciclistica 2024. "]
["Verrà consegnata in comodato d’uso la divisa di proprietà dell’associazione. L’atleta è tenuto a mantenere in ottime condizioni la divisa di cui è responsabile fino alla fine della stagione 2024.\nQualora si abbandoni per qualsiasi motivo l’Associazione Sportiva, il corridore è obbligato a restituire la divisa e gli accessori che gli sono consegnati in comodato d’uso. Nel caso questo non avvenga, si è obbligati a versare una somma pari a 70,00 €."]
["Art. 7\nLe comunicazioni tra Scuola e genitori/allievi vengono gestite attraverso SMS, WhatsApp, telefono ed  E-mail:\nPresidente Giuseppe Dianò  \t\t\t                            338 777 0029 – E-mail bikersviggiano@libero.it\nDirettore Sportivo  Francesco De Rosa  \t                347 136 4927."]
["I dati forniti da ciascun iscritto verranno utilizzati esclusivamente per i fini propri della scuola (tesseramento presso la Federazione, adempimenti consequenziali, pubblicità manifestazioni e rassegne stampa, etc.)"]
["Art. 8\nPer quanto non stabilito dal presente regolamento si fa riferimento alle regole generali della Federazione Ciclistica Italiana, consultabile sul sito internet www.federciclismo.it ed ai principi del buon senso e della civile convivenza"]
["Nome e Cognome Atleta",{"$f":"DATI!V3&\" \"&DATI!V2","v":" "}]
[]
["Nome  padre/madre",{"$f":"DATI!padre.madre","v":0}]
[]
["Luogo e data",null,"Per accettazione padre/madre"]